bitfinex-derivatives/quotes_ETHF0:USTF0_20240829
["timestamp","ask_amount","ask_price","bid_price","bid_amount"]
[1724935023055,4.49638807,2571.7,2571.4,3.2078]
[1724935023256,0.38876,2571.6,2571.4,3.2078]
[1724935023559,4.49638807,2571.9,2571.7,0.38874]
[1724935023758,0.38869,2572.1,2571.7,0.38874]
[1724935024065,4.39076135,2572.1,2572.0,0.3887]
[1724935024259,0.00583158,2572.5,2572.0,0.3887]
[1724935024559,0.00583158,2572.5,2572.3,3.2078]
[1724935024757,0.00583158,2572.5,2572.2,0.38866]
[1724935024965,20.02398,2572.4,2572.1,3.2078]
[1724935025158,19.63533,2572.4,2572.1,3.2078]
[1724935025466,0.38867,2572.2,2572.1,3.2078]
[1724935025663,0.38867,2572.2,2571.5,0.75426]
[1724935025664,3.888,2572.2,2571.5,0.38877]
[1724935025966,3.888,2572.2,2571.6,0.38876]
[1724935025967,0.38871,2572.0,2571.6,0.38876]
[1724935026262,0.38871,2572.0,2571.4,3.2078]
[1724935026263,5.0737832,2572.2,2571.4,3.2078]
[1724935026454,0.7357,2572.3,2571.4,3.2078]
[1724935026455,4.1020932,2571.9,2571.4,3.59659]
[1724935026657,8.2816432,2572.1,2571.4,3.2078]
[1724935026870,3.2078,2571.8,2571.4,3.2078]
[1724935027058,0.38878,2571.5,2571.4,3.2078]
[1724935027365,4.1020932,2571.7,2571.4,3.2078]
[1724935027560,0.3887,2572.0,2571.4,7.0966]
[1724935027861,4.14725125,2572.1,2571.8,0.38872]
[1724935028255,4.14725125,2572.1,2571.4,3.597]
[1724935028256,4.14725125,2572.1,2571.5,0.60752858]
[1724935028457,4.14725125,2572.1,2571.6,0.38875]
[1724935028458,0.3887,2572.0,2571.6,0.38875]
[1724935028656,0.3887,2572.0,2571.7,0.38874]
[1724935028861,4.53594125,2572.1,2571.7,0.38874]
[1724935029171,4.14725125,2572.1,2571.5,0.38877]
[1724935029366,0.38875,2571.7,2571.4,3.2078]
[1724935029557,0.38874,2571.8,2571.4,3.59658]
[1724935030061,4.74610833,2571.7,2571.4,3.59658]
[1724935030265,4.35735833,2571.7,2571.5,0.38877]
[1724935030466,4.35735833,2572.0,2571.4,3.2078]
[1724935030664,3.96548,2572.2,2571.4,3.2078]
[1724935030665,3.5768,2572.2,2571.4,3.2078]
[1724935030864,0.38869,2572.1,2571.8,0.38873]
[1724935031365,0.38872,2571.9,2571.6,0.38876]
[1724935031666,4.4104015,2572.0,2571.4,4.08284644]
[1724935031667,0.38871,2572.0,2571.7,0.38874]
[1724935031860,4.4104015,2572.1,2572.0,0.3887]
[1724935032062,19.63533,2572.4,2572.3,0.38865]
[1724935032362,19.63533,2572.4,2572.2,0.38866]
[1724935033366,19.63533,2572.4,2572.1,0.6704]
[1724935033367,19.63533,2572.4,2572.3,0.38865]
[1724935034161,20.02398,2572.4,2572.2,3.2078]
[1724935034361,0.38865,2572.3,2572.2,3.2078]
[1724935034666,2.33203,2572.2,2572.1,0.6704]
[1724935034857,6.58333,2572.2,2572.1,0.6704]
[1724935035174,0.97181,2571.9,2571.5,3.2078]
[1724935035462,0.97176,2572.0,2571.5,3.2078]
[1724935035671,4.61754819,2571.8,2571.6,0.38876]
[1724935035864,4.50874335,2571.9,2571.7,0.38874]
[1724935036065,0.38872,2571.9,2571.7,0.38874]
[1724935036459,0.38874,2571.8,2571.5,3.2078]
[1724935036661,4.12001335,2571.8,2571.5,3.2078]
[1724935037062,4.12001335,2571.8,2571.6,0.38876]
[1724935037063,0.38874,2571.8,2571.6,0.38876]
[1724935037263,0.38872,2571.9,2571.7,0.38874]
[1724935037662,4.37551688,2571.8,2571.7,0.38874]
[1724935038368,0.38876,2571.6,2571.5,3.2078]
[1724935038772,9.63397545,2571.6,2571.5,3.2078]
[1724935038965,9.63397545,2571.6,2571.1,3.59663]
[1724935038966,0.38881,2571.3,2571.1,3.59663]
[1724935039963,0.38882,2571.2,2571.1,3.2078]
[1724935040271,0.38882,2571.3,2571.1,3.59663]
[1724935040461,4.49220564,2571.4,2571.0,0.38884]
[1724935040660,0.38885,2571.1,2570.9,5.06471351]
[1724935040859,0.38885,2571.0,2570.9,4.67584351]
[1724935041073,0.38885,2571.1,2570.9,5.06471351]
[1724935041266,0.00583158,2571.2,2570.9,0.39471351]
[1724935041267,0.38885,2571.0,2570.9,0.39471351]
[1724935041571,4.45354275,2571.2,2571.0,0.38885]
[1724935041765,4.84237275,2571.2,2571.0,0.38885]
[1724935041964,0.38885,2571.0,2570.9,0.00584351]
[1724935042374,5.86467421,2571.0,2570.9,0.00584351]
[1724935042566,0.97221,2570.8,2570.5,4.191]
[1724935042767,0.97221,2570.8,2570.2,11.528]
[1724935042768,0.38893,2570.5,2570.2,15.719]
[1724935042965,0.38893,2570.5,2570.2,4.67]
[1724935042966,0.38896,2570.3,2570.2,4.67]
[1724935043174,0.97236,2570.5,2570.1,3.2078]
[1724935043175,0.38897,2570.2,2570.1,3.2078]
[1724935043472,4.23699383,2570.5,2570.1,3.59679]
[1724935043473,0.38896,2570.3,2570.1,3.59679]
[1724935043674,0.38895,2570.4,2570.1,3.59679]
[1724935043865,4.23699383,2570.5,2570.3,0.38895]
[1724935044173,4.43744776,2570.6,2570.4,0.38894]
[1724935044571,3.8904,2570.6,2570.5,0.38893]
[1724935044774,0.3722,2570.7,2570.6,0.38891]
[1724935044977,0.38887,2570.9,2570.6,0.3889]
[1724935045273,0.38892,2570.6,2570.4,3.2078]
[1724935045466,0.38892,2570.6,2570.4,3.59674]
[1724935045662,0.3889,2570.7,2570.5,0.38892]
[1724935045864,0.3889,2570.7,2570.4,3.59673]
[1724935046075,4.33017528,2570.6,2570.3,4.191]
[1724935046276,4.33017528,2570.6,2570.4,0.38893]
[1724935046478,4.33017528,2570.8,2570.7,0.3889]
[1724935046670,1.90794732,2570.9,2570.7,0.3889]
[1724935046982,4.14536952,2570.8,2570.2,5.0241]
[1724935047281,4.14536952,2570.8,2570.7,0.3889]
[1724935047669,8.42385952,2570.8,2570.6,0.38891]
[1724935047865,4.53425952,2570.8,2570.6,0.38891]
[1724935048070,4.53425952,2570.8,2570.6,4.86891]
[1724935048281,4.14536952,2570.8,2570.7,0.3889]
[1724935048668,4.14536952,2570.8,2570.7,4.2785]
[1724935048869,0.3529,2571.1,2571.0,0.38885]
[1724935049075,0.3529,2571.1,2570.9,4.86886]
[1724935049270,0.3529,2571.1,2571.0,0.38885]
[1724935049668,0.38885,2571.0,2570.9,4.48]
[1724935050178,0.38887,2570.9,2570.7,3.59669]
[1724935050377,0.38887,2570.9,2570.5,5.54642696]
[1724935050378,0.3889,2570.7,2570.5,5.05892]
[1724935050578,0.38891,2570.6,2570.5,4.67]
[1724935050777,3.16836256,2570.6,2570.5,4.67]
[1724935051076,3.16836256,2570.6,2570.5,5.05893]
[1724935051572,3.16836256,2570.6,2570.5,19.73724126]
[1724935051773,1.8870089,2571.2,2571.1,0.38884]
[1724935051985,0.38884,2571.1,2570.9,0.38886]
[1724935052180,4.59596079,2571.1,2570.8,3.2078]
[1724935052476,0.38884,2571.1,2570.9,0.38885]
[1724935052678,0.75676158,2571.2,2571.0,0.38885]
[1724935052880,0.38884,2571.1,2571.0,0.38885]
[1724935053066,0.38884,2571.1,2570.9,0.38886]
[1724935053067,4.86886741,2571.1,2570.9,0.38886]
[1724935053467,4.86886741,2571.1,2571.0,0.38885]
[1724935053674,4.48002741,2571.1,2571.0,0.38885]
[1724935054477,0.00583158,2571.2,2571.1,1.36094]
[1724935054678,0.00583158,2571.2,2571.1,1.96859953]
[1724935054883,0.00583158,2571.2,2571.1,9.0659929]
[1724935055078,0.00583158,2571.2,2571.1,8.0938929]
[1724935055378,0.00583158,2571.2,2571.1,8.09391566]
[1724935055770,0.3843,2571.6,2571.4,0.38878]
[1724935055771,0.38876,2571.6,2571.4,0.38878]
[1724935055968,2.49095732,2571.7,2571.4,0.38878]
[1724935056172,4.42894195,2571.5,2571.4,0.38878]
[1724935056483,4.42894195,2571.6,2571.4,0.38878]
[1724935056682,1.51907732,2571.7,2571.4,0.38878]
[1724935056979,0.38878,2571.5,2571.4,0.38878]
[1724935057181,4.83372082,2571.6,2571.4,0.38878]
[1724935057383,0.38876,2571.6,2571.5,0.38878]
[1724935057687,0.38878,2571.5,2571.4,0.38878]
[1724935058183,0.38879,2571.4,2571.3,4.67]
[1724935058682,0.77538,2571.5,2571.4,0.38879]
[1724935058982,4.69122071,2571.4,2571.3,5.0588]
[1724935059186,4.69122071,2571.4,2571.3,4.67]
[1724935059384,1.36083,2571.3,2571.2,0.00583158]
[1724935059579,3.8888,2571.4,2571.3,0.38881]
[1724935059580,4.65983071,2571.4,2571.3,0.38881]
[1724935060082,0.3574,2571.4,2571.3,0.38881]
[1724935060289,4.23583826,2571.4,2571.2,0.39464158]
[1724935060582,0.77538,2571.5,2571.2,0.00583158]
[1724935060776,0.77538,2571.5,2571.2,0.39464158]
[1724935060777,0.38879,2571.4,2571.2,0.39464158]
[1724935060973,0.38881,2571.3,2571.2,0.39464158]
[1724935061175,0.3896184,2571.4,2571.2,0.39464158]
[1724935061372,0.3896184,2571.4,2571.3,0.38881]
[1724935061585,0.0008184,2571.4,2571.3,0.38881]
[1724935061779,0.3896084,2571.4,2571.3,0.38881]
[1724935061983,0.38881,2571.3,2571.2,0.39464158]
[1724935062385,1.36083,2571.3,2571.2,0.00583158]
[1724935062588,5.66510705,2571.3,2571.2,0.00583158]
[1724935062793,4.69308705,2571.3,2571.2,0.00583158]
[1724935063196,4.30427705,2571.3,2571.2,0.39465158]
[1724935063681,4.69308705,2571.3,2571.2,0.00583158]
[1724935064386,0.9728084,2571.4,2571.2,7.10243158]
[1724935064387,0.0008184,2571.4,2571.2,7.10243158]
[1724935064589,0.0008184,2571.4,2571.3,5.05881]
[1724935064981,0.0008184,2571.4,2571.3,5.66644437]
[1724935066278,0.38881,2571.3,2571.2,0.00583158]
[1724935066687,4.23659071,2571.3,2571.2,0.39465158]
[1724935067888,4.23659071,2571.3,2571.2,3.60245158]
[1724935068095,4.23659071,2571.3,2571.2,4.2100971]
[1724935068588,4.23659071,2571.3,2571.2,3.60245158]
[1724935068793,0.0008184,2571.4,2571.3,0.38881]
[1724935069495,0.0008184,2571.4,2571.3,5.05881]
[1724935069886,0.0008184,2571.4,2571.3,5.66642495]
[1724935070086,0.0008184,2571.4,2571.3,6.44844495]
[1724935070689,0.0008184,2571.4,2571.3,5.47642495]
[1724935072090,0.0008184,2571.4,2571.3,11.30926495]
[1724935072391,0.00583158,2571.8,2571.7,0.38875]
[1724935072598,1.51907732,2572.1,2572.0,1.36046]
[1724935072787,22.17961094,2572.4,2572.0,13.15502121]
[1724935072788,19.63533,2572.4,2572.0,13.15502121]
[1724935072991,19.63533,2572.4,2572.3,8.07645]
[1724935075499,0.38867,2572.2,2572.1,4.48]
[1724935075697,0.38872,2571.9,2571.8,7.6878]
[1724935075892,6.76342732,2572.1,2571.8,4.48]
[1724935076196,3.87814218,2571.9,2571.8,4.86873]
[1724935076400,4.29496259,2572.0,2571.9,0.38872]
[1724935076593,0.3846,2572.1,2571.9,0.38872]
[1724935076786,0.3846,2572.1,2572.0,0.3887]
[1724935077089,4.14971202,2572.0,2571.9,0.3887]
[1724935077392,20.02398,2572.4,2572.2,0.38866]
[1724935077597,20.02398,2572.4,2572.2,4.86866]
[1724935077796,19.63533,2572.4,2572.3,0.38865]
[1724935078297,23.73440872,2572.4,2572.3,0.38865]
[1724935078500,24.12304872,2572.4,2572.3,0.38865]
[1724935078896,23.73440872,2572.4,2572.3,0.38865]
[1724935079493,19.63533,2572.4,2572.3,0.38865]
[1724935080290,0.38865,2572.3,2572.2,4.86866]
[1724935080491,0.38865,2572.3,2572.2,4.48]
[1724935080693,23.75543516,2572.4,2572.2,4.86866]
[1724935080694,24.14408516,2572.4,2572.2,4.86866]
[1724935080897,0.38865,2572.3,2572.2,4.48]
[1724935081088,0.38869,2572.1,2572.0,4.48]
[1724935081295,0.74209,2572.2,2572.0,4.8687]
[1724935081495,4.44268361,2572.1,2572.0,4.48]
[1724935081705,4.44268361,2572.1,2572.0,4.8687]
[1724935082288,4.83137361,2572.1,2572.0,4.48]
[1724935082491,8.33068361,2572.1,2572.0,4.8687]
[1724935082694,4.44268361,2572.1,2572.0,4.8687]
[1724935082898,0.3534,2572.2,2572.1,0.38869]
[1724935083104,21.54305732,2572.4,2572.2,0.38866]
[1724935083298,21.54305732,2572.4,2572.3,4.48]
[1724935083800,25.8981498,2572.4,2572.3,4.48]
[1724935084203,25.5095098,2572.4,2572.3,4.86865]
[1724935084699,2.03542475,2572.5,2572.4,2.33186]
[1724935084902,2.03542475,2572.5,2572.4,10.90621532]
[1724935085103,2.03542475,2572.5,2572.4,16.90621532]
[1724935085298,0.70994475,2572.5,2572.4,16.90621532]
[1724935085603,2.99266411,2573.0,2572.4,16.90621532]
[1724935085604,2.99266411,2573.0,2572.9,1.35998]
[1724935085802,2.10078411,2573.0,2572.9,14.51251862]
[1724935086002,3.49144147,2573.3,2573.2,0.38852]
[1724935086305,3.49144147,2573.3,2573.2,4.56763]
[1724935086603,2.63014147,2573.3,2573.2,20.29414]
[1724935086804,3.0513204,2573.5,2573.4,2.33095]
[1724935087109,3.61444775,2573.7,2573.6,2.33076]
[1724935087304,5.1033212,2573.8,2573.7,2.33068]
[1724935087504,5.1033212,2573.8,2573.7,6.21628]
[1724935087707,5.1033212,2573.8,2573.7,12.21628]
[1724935088003,5.62636536,2574.6,2574.4,0.38834]
[1724935088197,5.62636536,2574.6,2574.4,8.07614]
[1724935088399,0.00390364,2574.7,2574.4,18.93099]
[1724935088597,0.00390364,2574.7,2574.4,19.12270713]
[1724935089004,0.00390364,2574.7,2574.6,1.35909]
[1724935089206,0.1,2576.5,2575.7,40.727]
[1724935089499,0.0202,2576.8,2575.7,40.727]
[1724935089500,0.0202,2576.8,2576.7,0.38799]
[1724935089702,0.0202,2576.8,2576.4,3.2078]
[1724935089906,0.0202,2576.8,2576.1,3.2078]
[1724935089907,4.42674541,2576.8,2576.1,3.2078]
[1724935090107,0.40818,2576.8,2576.4,3.59583]
[1724935090310,0.40818,2576.8,2576.7,3.2078]
[1724935090813,5.18939588,2576.8,2576.2,0.00583158]
[1724935091010,0.38805,2576.3,2576.2,0.00583158]
[1724935091712,0.38801,2576.6,2576.2,3.88743158]
[1724935092005,0.38801,2576.6,2576.2,0.00583158]
[1724935092213,0.7562,2576.7,2576.2,0.00583158]
[1724935092411,0.38803,2576.5,2576.2,0.00583158]
[1724935092710,4.37840714,2576.6,2576.2,0.00583158]
[1724935093112,0.38805,2576.3,2576.2,0.00583158]
[1724935093503,8.3358418,2576.3,2576.2,0.00583158]
[1724935093813,0.38811,2576.0,2575.8,3.2078]
[1724935094109,3.2078,2576.5,2575.8,3.2078]
[1724935094302,0.38807,2576.2,2575.8,3.2078]
[1724935094606,0.38809,2576.1,2575.8,3.2078]
[1724935094803,5.21858546,2576.4,2575.8,3.2078]
[1724935095008,0.03494226,2576.0,2575.8,3.2078]
[1724935095305,4.11463177,2576.1,2575.8,3.2078]
[1724935095511,0.38811,2575.9,2575.7,0.00583158]
[1724935095707,0.38812,2575.9,2575.7,0.00583158]
[1724935095910,4.11463177,2575.8,2575.7,0.00583158]
[1724935096211,3.21363158,2576.2,2575.7,0.00583158]
[1724935096398,4.48206302,2575.9,2575.7,0.00583158]
[1724935096715,4.48206302,2576.0,2575.7,0.00583158]
[1724935096907,0.38811,2576.0,2575.7,0.00583158]
[1724935097106,4.73063131,2575.9,2575.7,0.00583158]
[1724935097312,4.34252131,2575.9,2575.7,0.00583158]
[1724935097607,3.8824,2575.8,2575.7,0.00583158]
[1724935097810,4.34252131,2575.9,2575.7,0.00583158]
[1724935098008,4.34252131,2575.8,2575.7,0.00583158]
[1724935098310,4.07549548,2575.9,2575.7,0.00583158]
[1724935098613,0.7607,2576.0,2575.7,0.00583158]
[1724935098810,4.07549548,2575.9,2575.7,0.00583158]
[1724935099211,3.21363158,2576.2,2576.1,0.38808]
[1724935099402,0.00583158,2576.2,2576.1,0.38808]
[1724935099602,0.00583158,2576.2,2576.1,7.47748]
[1724935099809,0.00204019,2576.2,2576.1,7.47748]
[1724935100202,0.0202,2576.8,2576.7,0.38799]
[1724935100404,0.00471246,2576.8,2576.7,18.32628185]
[1724935101407,3.579,2577.8,2576.7,18.32628185]
[1724935101408,0.3712,2577.8,2576.9,0.96991]
[1724935101608,0.3712,2577.8,2576.7,19.08246813]
[1724935101609,0.3712,2577.8,2577.4,3.2078]
[1724935101815,0.3712,2577.8,2577.1,0.00582016]
[1724935101816,4.36942365,2577.7,2577.1,44.01362016]
[1724935102010,0.38789,2577.4,2577.1,44.01362016]
[1724935102210,0.38786,2577.6,2577.1,44.01362016]
[1724935102416,4.36942365,2577.7,2577.1,44.40155016]
[1724935102614,4.19072172,2577.5,2577.1,44.01362016]
[1724935102908,0.3712,2577.8,2577.4,3.59568]
[1724935103114,3.2078,2578.2,2577.8,0.38782]
[1724935103313,3.2078,2578.2,2577.7,3.2078]
[1724935103512,4.33230287,2578.1,2577.7,3.59563]
[1724935103711,0.9695,2578.0,2577.4,3.2078]
[1724935103912,0.9695,2578.0,2577.1,48.67362016]
[1724935103913,0.38784,2577.7,2577.1,48.67362016]
[1724935104113,4.2011847,2577.9,2577.4,3.2078]
[1724935104312,3.2078,2578.2,2577.4,3.2078]
[1724935104616,0.38782,2577.9,2577.4,3.2078]
[1724935104814,4.2011847,2578.1,2577.7,0.38783]
[1724935105013,4.5889747,2578.1,2577.4,3.2078]
[1724935105312,0.38784,2577.8,2577.4,3.2078]
[1724935105512,4.2011847,2578.1,2577.4,3.2078]
[1724935106011,4.5889747,2578.1,2577.4,3.2078]
[1724935106213,3.2078,2578.2,2577.9,0.3878]
[1724935106413,3.2078,2579.0,2578.4,0.38773]
[1724935106616,3.2078,2579.0,2578.0,7.8678]
[1724935106824,0.3878,2578.0,2577.9,4.718]
[1724935107117,0.96953,2577.9,2577.3,3.2078]
[1724935107317,0.38786,2577.6,2577.3,3.2078]
[1724935107704,0.96964,2577.7,2577.6,0.64971]
[1724935107922,0.96964,2577.7,2577.3,3.2078]
[1724935107923,0.38789,2577.4,2577.3,3.2078]
[1724935108110,1.35772,2577.2,2577.1,0.00582016]
[1724935108307,4.07248481,2577.4,2576.6,3.2078]
[1724935108507,0.372,2577.9,2577.3,3.2078]
[1724935108706,0.38788,2577.5,2577.3,3.2078]
[1724935109114,4.07248481,2577.8,2577.4,0.38788]
[1724935109322,0.37778207,2577.9,2577.4,0.38788]
[1724935109508,0.00578207,2577.9,2577.6,3.2078]
[1724935109708,0.38789,2577.4,2577.3,3.21362016]
[1724935110317,3.21358207,2577.9,2577.3,7.09362016]
[1724935110318,4.18315207,2577.9,2577.3,7.09362016]
[1724935110515,0.38789,2577.4,2577.3,3.21362016]
[1724935110719,4.49549486,2577.7,2577.3,3.21362016]
[1724935110905,4.49549486,2577.8,2577.3,3.21362016]
[1724935110906,0.38788,2577.5,2577.3,3.21362016]
[1724935111110,0.384,2577.7,2577.3,3.21362016]
[1724935111318,0.38789,2577.4,2577.3,0.00582016]
[1724935111623,4.56541,2577.4,2577.3,0.00582016]
[1724935111913,4.26789,2577.4,2577.3,0.00582016]
[1724935112116,0.9698,2577.2,2576.5,4.66]
[1724935112312,0.38798,2576.8,2576.5,4.66]
[1724935112508,4.19088718,2577.1,2576.7,3.2078]
[1724935112721,0.3671,2577.0,2576.5,4.66]
[1724935112910,0.3671,2577.0,2576.4,3.2078]
[1724935112911,0.38802,2576.5,2576.4,3.2078]
[1724935113213,0.38805,2576.3,2576.2,0.00582016]
[1724935113414,3.59585,2576.3,2576.2,0.00582016]
[1724935113621,7.75884745,2576.3,2576.2,0.00582016]
[1724935113821,7.75884745,2576.3,2575.6,3.2078]
[1724935113822,14.34093745,2576.3,2575.6,3.2078]
[1724935114015,0.28139745,2576.3,2575.7,4.66]
[1724935114313,0.3785,2576.4,2576.0,0.38809]
[1724935114508,0.76654,2576.4,2575.8,3.2078]
[1724935114712,0.38818,2575.5,2575.1,0.38822]
[1724935114917,3.2078,2575.9,2575.5,0.38816]
[1724935114918,3.59592,2575.9,2575.5,0.38816]
[1724935115110,3.97435,2576.4,2575.5,4.66]
[1724935115316,3.97435,2576.4,2576.0,0.38809]
[1724935115514,4.83710609,2576.3,2575.7,3.2078]
[1724935115716,4.44904609,2576.3,2575.5,4.66]
[1724935116016,0.3881,2576.0,2575.7,0.38813]
[1724935116319,4.67967642,2575.9,2575.6,0.38815]
[1724935116618,0.97016,2576.3,2575.3,8.284]
[1724935116619,0.38817,2575.6,2575.3,8.284]
[1724935116822,3.59593,2575.8,2575.6,0.38816]
[1724935117021,7.49935642,2575.8,2575.3,7.8958]
[1724935117319,3.2078,2575.8,2575.3,7.8958]
[1724935117622,3.2078,2575.8,2575.7,0.38814]
[1724935118012,0.38809,2576.1,2575.3,7.8958]
[1724935118215,3.2078,2576.3,2575.9,0.38811]
[1724935118521,4.28125338,2575.9,2575.3,7.8958]
[1724935118815,0.38814,2575.7,2575.4,0.38818]
[1724935119009,4.17805,2576.0,2575.3,7.8958]
[1724935119010,0.97029,2575.9,2575.3,7.8958]
[1724935119214,3.2078,2575.7,2575.3,7.8958]
[1724935119416,0.38819,2575.4,2575.3,7.8958]
[1724935119815,9.53450714,2575.4,2575.3,7.8958]
[1724935120012,12.74230714,2575.4,2575.3,4.688]
[1724935120811,12.74230714,2575.4,2575.0,0.00582016]
[1724935120812,11.38363714,2575.4,2575.0,0.00582016]
[1724935121125,3.2078,2575.7,2575.1,0.97059]
[1724935121311,3.2078,2575.7,2575.6,0.38816]
[1724935121719,3.2078,2575.7,2575.6,1.35856]
[1724935121914,3.2078,2575.7,2575.6,0.38816]
[1724935122216,3.2078,2575.7,2575.2,0.3686]
[1724935122417,3.2078,2575.7,2575.3,0.38819]
[1724935122617,3.2078,2575.7,2575.0,0.00582016]
[1724935122922,3.59595,2575.7,2575.5,0.38817]
[1724935123120,3.2078,2575.7,2575.6,0.38816]
[1724935123525,3.2078,2575.7,2575.1,40.8]
[1724935123724,3.59594,2575.7,2575.1,40.8]
[1724935123916,3.59594,2575.7,2575.3,0.38819]
[1724935123917,0.38816,2575.6,2575.3,0.38819]
[1724935124321,4.06688569,2575.5,2575.3,0.38819]
[1724935124517,4.06688569,2575.5,2575.4,0.38819]
[1724935125029,3.2078,2575.7,2575.5,0.38816]
[1724935125219,3.2078,2575.7,2575.6,0.38816]
[1724935125625,7.94929937,2575.7,2575.1,40.8]
[1724935125821,7.56114937,2575.7,2575.6,0.38816]
[1724935126928,7.56114937,2575.7,2575.1,40.8]
[1724935126929,17.44354937,2575.7,2575.1,40.8]
[1724935127121,0.3884,2575.6,2575.0,0.00582016]
[1724935127323,7.56114937,2575.7,2575.1,3.2078]
[1724935127519,7.56114937,2575.7,2575.6,0.38816]
[1724935128126,3.2078,2575.7,2575.6,0.38816]
[1724935128623,3.2078,2575.7,2575.2,5.16155]
[1724935128624,0.38816,2575.6,2575.4,0.38817]
[1724935128839,0.38817,2575.5,2575.3,0.38819]
[1724935129025,0.38819,2575.4,2575.2,4.57921]
[1724935129339,0.3882,2575.4,2575.2,4.57921]
[1724935129535,0.38823,2575.1,2575.0,0.00582016]
[1724935130033,8.66673897,2575.1,2575.0,0.00582016]
[1724935130228,4.39530897,2575.1,2575.0,0.39407016]
[1724935130421,3.5962,2575.3,2575.2,0.38822]
[1724935130422,0.3884,2575.3,2575.2,0.38822]
[1724935130733,0.38818,2575.5,2575.3,0.38819]
[1724935131027,4.82408221,2575.3,2575.1,0.38822]
[1724935131231,0.38823,2575.1,2575.0,0.00582016]
[1724935131425,1.35882,2575.1,2575.0,0.00582016]
[1724935131621,4.22251191,2575.1,2575.0,8.45570016]
[1724935131826,0.3767,2575.8,2575.7,0.38814]
[1724935132229,8.76235182,2575.8,2575.7,0.38814]
[1724935132730,3.66525182,2575.8,2575.7,6.21126]
[1724935132934,0.00582016,2576.5,2576.4,0.38804]
[1724935133633,0.00582016,2576.5,2575.9,7.8678]
[1724935133829,0.39385016,2576.5,2576.1,0.38807]
[1724935134131,7.44843495,2576.4,2575.5,1.01456876]
[1724935134334,0.38813,2575.8,2575.6,0.60515234]
[1724935134535,3.2078,2575.8,2575.3,1.25852854]
[1724935134828,0.38816,2575.6,2575.4,0.60539352]
[1724935135028,0.38816,2575.6,2575.3,41.18819]
[1724935135232,3.59599,2575.5,2575.1,0.383]
[1724935135433,7.50943449,2575.5,2575.4,0.60544583]
[1724935135633,0.38821,2575.3,2575.0,3.21362016]
[1724935136037,3.59603,2575.1,2575.0,0.00582016]
[1724935136332,7.93846103,2575.1,2575.0,0.00582016]
[1724935136536,17.82166103,2575.1,2575.0,0.00582016]
[1724935137027,11.82166103,2575.1,2575.0,0.00582016]
[1724935137223,17.82166103,2575.1,2575.0,0.00582016]
[1724935137428,0.97066,2574.9,2574.2,3.59616]
[1724935137628,0.38833,2574.5,2574.3,0.60599698]
[1724935137836,0.38832,2574.6,2574.2,0.38836]
[1724935138132,0.9707,2574.9,2574.3,0.60607918]
[1724935138133,7.67614919,2574.9,2574.3,0.60607918]
[1724935138331,7.68196935,2574.9,2574.4,0.6059783]
[1724935138539,0.00582016,2574.9,2574.8,0.38828]
[1724935138937,4.08590935,2574.9,2574.8,0.38828]
[1724935139133,0.00582016,2574.9,2574.8,0.38828]
[1724935139334,0.00582016,2574.9,2574.8,0.99427991]
[1724935139634,0.00582016,2574.9,2574.7,0.38828]
[1724935139834,4.32426361,2574.9,2574.6,0.3883]
[1724935140037,0.38829,2574.8,2574.5,0.38832]
[1724935140337,4.77304363,2574.7,2574.4,0.38833]
[1724935140531,4.38475363,2574.7,2574.3,0.00582016]
[1724935140724,4.38475363,2574.7,2574.5,0.38832]
[1724935140929,0.38834,2574.4,2574.3,0.00582016]
[1724935141229,4.45977451,2574.4,2574.3,0.00582016]
[1724935141735,0.38834,2574.4,2574.3,0.00582016]
[1724935141938,4.84811451,2574.4,2574.3,0.00582016]
[1724935142127,9.70376451,2574.4,2574.3,0.00582016]
[1724935142441,15.70376451,2574.4,2574.3,0.00582016]
[1724935142831,9.70376451,2574.4,2574.3,0.00582016]
[1724935143038,15.70376451,2574.4,2574.3,0.00582016]
[1724935143337,14.73291451,2574.4,2574.3,0.00582016]
[1724935143529,15.70376451,2574.4,2574.3,0.00582016]
[1724935143726,0.97096,2574.2,2573.7,4.191]
[1724935144039,3.2078,2574.0,2573.6,0.38845]
[1724935144236,0.38843,2573.8,2573.5,0.38847]
[1724935144449,0.38844,2573.7,2573.4,0.38848]
[1724935144642,4.4226689,2573.7,2573.3,7.7668]
[1724935144935,4.4226689,2573.7,2573.2,0.00582016]
[1724935144936,0.38851,2573.3,2573.2,0.00582016]
[1724935145236,3.5963,2573.4,2573.2,0.00582016]
[1724935145642,0.17435566,2573.3,2573.2,0.00582016]
[1724935146032,0.17435566,2573.3,2573.2,0.39434016]
[1724935146434,0.00582016,2573.5,2573.4,0.38849]
[1724935147441,7.99050111,2573.5,2573.2,0.00582016]
[1724935147640,4.10490111,2573.5,2573.4,0.38849]
[1724935148333,4.10490111,2573.5,2573.4,3.2078]
[1724935148535,4.10490111,2573.5,2573.4,3.59629]
[1724935148736,4.49338111,2573.5,2573.3,0.38849]
[1724935148930,4.10490111,2573.5,2573.3,0.3885]
[1724935149129,4.10490111,2573.5,2573.2,0.00582016]
[1724935149334,0.3885,2573.3,2573.2,0.00582016]
[1724935149531,0.38859,2572.8,2572.6,0.3886]
[1724935149736,6.97127,2573.3,2572.2,4.191]
[1724935149737,0.97142,2572.9,2572.2,4.191]
[1724935150036,4.44824313,2572.8,2572.6,0.38861]
[1724935150437,4.05965313,2572.8,2572.7,0.38859]
[1724935150836,4.51207494,2572.9,2572.8,0.38857]
[1724935151031,4.90064494,2572.9,2572.4,0.00391817]
[1724935151335,4.67828635,2572.9,2572.7,0.38859]
[1724935151535,4.28971635,2572.9,2572.4,0.00391817]
[1724935151838,0.38862,2572.5,2572.4,0.00391817]
[1724935152333,3.2078,2572.7,2572.4,0.00391817]
[1724935152531,3.5773,2573.0,2572.6,0.3886]
[1724935152743,0.38857,2572.9,2572.7,0.38858]
[1724935152941,4.75941676,2572.9,2572.7,0.38858]
[1724935153144,4.37084676,2572.9,2572.4,0.00391817]
[1724935153446,4.37084676,2572.9,2572.8,0.38858]
[1724935153938,0.38861,2572.6,2572.5,3.59642]
[1724935154144,0.3886,2572.7,2572.5,3.59642]